fUST/lending_fUST_20240127
["ID","MTS","AMOUNT","RATE_DAILY","PERIOD"]
[312851248,1706358639490,-228.50754628,0.00033,2]
[312851249,1706358639499,-22355.32655684,0.00033,5]
[312851250,1706358639508,-151.0,0.00033,2]
[312851251,1706358639517,-621.12962092,0.00033072,2]
[312851252,1706358639526,-272.585389,0.00033072,2]
[312851253,1706358639536,-158.81503,0.00033268,2]
[312851254,1706358639545,-151.0,0.00033524,2]
[312851255,1706358639556,-151.0,0.00034047,2]
[312851256,1706358639568,-272.585389,0.00034051,2]
[312851257,1706358639577,-358.863257,0.000345,2]
[312851258,1706358639587,-151.0,0.00034571,2]
[312851259,1706358639596,-538.294885,0.000348,2]
[312851260,1706358639605,-158.81503,0.00034834,2]
[312851261,1706358639614,-3476.12,0.00034899,2]
[312851262,1706358639623,-3476.12,0.00034899,2]
[312851263,1706358639632,-3476.12,0.00034899,2]
[312851264,1706358639643,-3476.12,0.00034899,2]
[312851265,1706358639653,-3476.12,0.00034899,2]
[312851266,1706358639662,-3476.12,0.00034899,2]
[312851267,1706358639671,-3476.12,0.00034899,2]
[312851268,1706358639682,-3476.12,0.00034899,2]
[312851269,1706358639691,-3476.14,0.00034899,2]
[312851270,1706358639700,-3476.14,0.00034899,2]
[312851271,1706358639708,-500.0,0.00034899,10]
[312851272,1706358639717,-500.0,0.00034899,10]
[312851273,1706358639726,-500.0,0.00034899,10]
[312851274,1706358639736,-172.73238116,0.00034899,10]
[312851275,1706358639745,-500.0,0.00034899,10]
[312851276,1706358639754,-158.06765206,0.00034899,10]
[312851277,1706358639762,-335.28077481,0.00034899,10]
[312851279,1706358639771,-500.0,0.00034899,10]
[312851280,1706358639780,-500.0,0.00034899,10]
[312851281,1706358639789,-500.0,0.00034899,10]
[312851282,1706358639798,-500.0,0.00034899,10]
[312851283,1706358639806,-500.0,0.00034899,10]
[312851284,1706358639815,-500.0,0.00034899,10]
[312851285,1706358639824,-500.0,0.00034899,10]
[312851286,1706358639833,-500.0,0.00034899,10]
[312851287,1706358639843,-500.0,0.00034899,10]
[312851288,1706358639852,-500.0,0.00034899,10]
[312851289,1706358639862,-451.13072995,0.00034899,10]
[312851290,1706358639871,-500.0,0.00034899,10]
[312851291,1706358639880,-500.0,0.00034899,10]
[312851292,1706358639889,-500.0,0.00034899,10]
[312851293,1706358639898,-500.0,0.00034899,10]
[312851294,1706358639908,-500.0,0.00034899,10]
[312851295,1706358639917,-500.0,0.00034899,10]
[312851296,1706358639997,-500.0,0.00034899,10]
[312851297,1706358640007,-500.0,0.00034899,10]
[312851298,1706358640016,-500.0,0.00034899,10]
[312851299,1706358640025,-500.0,0.00034899,10]
[312851300,1706358640035,-500.0,0.00034899,10]
[312851301,1706358640043,-500.0,0.00034899,10]
[312851302,1706358640052,-500.0,0.00034899,10]
[312851303,1706358640061,-500.0,0.00034899,10]
[312851304,1706358640070,-500.0,0.00034899,10]
[312851305,1706358640080,-500.0,0.00034899,10]
[312851306,1706358640089,-500.0,0.00034899,10]
[312851307,1706358640099,-500.0,0.00034899,10]
[312851308,1706358640108,-500.0,0.00034899,10]
[312851309,1706358640117,-500.0,0.00034899,10]
[312851310,1706358640127,-500.0,0.00034899,10]
[312851311,1706358640136,-500.0,0.00034899,10]
[312851312,1706358640145,-500.0,0.00034899,10]
[312851313,1706358640154,-500.0,0.00034899,10]
[312851314,1706358640163,-500.0,0.00034899,10]
[312851315,1706358640172,-500.0,0.00034899,10]
[312851316,1706358640181,-500.0,0.00034899,10]
[312851317,1706358640190,-500.0,0.00034899,10]
[312851318,1706358640199,-574.83531078,0.00034899,10]
[312851319,1706358640208,-500.0,0.00034899,10]
[312851320,1706358640217,-500.0,0.00034899,10]
[312851321,1706358640226,-500.0,0.00034899,10]
[312851322,1706358640235,-235705.29759902,0.000349,2]
[312851323,1706358640244,-1000.0,0.00034999,3]
[312851324,1706358640253,-714.830675,0.00035,7]
[312851325,1706358640261,-155.12190431,0.00035,6]
[312851326,1706358640270,-64779.66661041,0.00035,15]
[312851327,1706358640279,-592.61828384,0.00035,2]
[312851328,1706358640290,-2000.0,0.00035,11]
[312851329,1706358640299,-717.726514,0.00035,2]
[312851330,1706358640308,-2000.0,0.0003501,11]
[312851331,1706358640317,-2000.0,0.0003502,11]
[312851332,1706358640326,-272.585389,0.00035029,2]
[312851333,1706358640334,-2000.0,0.0003503,11]
[312851334,1706358640343,-2000.0,0.0003504,11]
[312851335,1706358640353,-2000.0,0.0003505,11]
[312851336,1706358640362,-151.0,0.0003505,2]
[312851337,1706358640371,-523.526667,0.0003505,2]
[312851338,1706358640380,-523.526667,0.0003505,2]
[312851339,1706358640389,-7874.904537,0.0003505,2]
[312851340,1706358640398,-7874.904537,0.0003505,2]
[312851341,1706358640408,-2686.359775,0.0003505,2]
[312851342,1706358640417,-2686.359775,0.0003505,2]
[312851343,1706358640426,-151.0,0.0003505,2]
[312851344,1706358640435,-151.0,0.0003505,2]
[312851345,1706358640444,-2000.0,0.0003506,12]
[312851346,1706358640453,-2000.0,0.0003507,12]
[312851347,1706358640462,-2000.0,0.0003508,12]
[312851348,1706358640472,-2000.0,0.0003509,12]
[312851349,1706358640480,-151.0,0.00035095,4]
[312851350,1706358640490,-2000.0,0.000351,12]
[312851351,1706358640499,-2000.0,0.0003511,12]
[312851352,1706358640508,-2000.0,0.0003512,12]
[312851353,1706358640517,-2000.0,0.0003513,12]
[312851354,1706358640526,-2000.0,0.0003514,12]
[312851355,1706358640535,-2000.0,0.0003515,12]
[312851356,1706358640544,-2000.0,0.0003516,12]
[312851357,1706358640555,-3482.948512,0.0003517,12]
[312851358,1706358640566,-823.04458208,0.0003557,2]
[312851359,1706358640575,-522.5050858,0.0003557,2]
[312851361,1706358640585,-1000.0,0.0003557,10]
[312851363,1706358640594,-1000.0,0.0003557,10]
[312851365,1706358640604,-370.31329327,0.0003557,2]
[312851366,1706358640613,-525.0,0.0003557,2]
[312851367,1706358640622,-331.20389068,0.0003557,2]
[312851368,1706358640632,-311.46600591,0.0003557,2]
[312851369,1706358640641,-400.16829987,0.0003557,2]
[312851370,1706358640650,-897.158143,0.000356,2]
[312851371,1706358640658,-1937.904786,0.00035616,120]
[312851372,1706358640667,-151.0,0.00035618,4]
[312851373,1706358640676,-500.0,0.0003562,3]
[312851374,1706358640684,-500.0,0.0003562,3]
[312851375,1706358640693,-500.0,0.0003564,3]
[312851376,1706358640702,-500.0,0.0003564,3]
[312851377,1706358640710,-500.0,0.0003566,3]
[312851378,1706358640719,-500.0,0.0003566,3]
[312851379,1706358640728,-500.0,0.0003568,3]
[312851380,1706358640737,-500.0,0.0003568,3]
[312851382,1706358640746,-1280.968245,0.00035684,2]
[312851383,1706358640755,-856.34501,0.00035684,2]
[312851384,1706358640763,-853.978829,0.00035684,2]
[312851385,1706358640772,-570.896673,0.00035684,2]
[312851386,1706358640781,-177.54501,0.00035684,2]
[312851387,1706358640790,-500.0,0.000357,3]
[312851388,1706358640798,-500.0,0.000357,3]
[312851390,1706358640808,-500.0,0.0003572,3]
[312851391,1706358640817,-500.0,0.0003572,3]
[312851392,1706358640826,-500.0,0.0003574,3]
[312851393,1706358640834,-500.0,0.0003574,3]
[312851394,1706358640843,-500.0,0.0003576,3]
[312851395,1706358640853,-500.0,0.0003576,3]
[312851396,1706358640861,-500.0,0.0003578,3]
[312851397,1706358640870,-500.0,0.0003578,3]
[312851398,1706358640879,-500.0,0.000358,3]
[312851399,1706358640888,-500.0,0.000358,3]
[312851400,1706358640897,-500.0,0.0003582,3]
[312851401,1706358640906,-500.0,0.0003582,3]
[312851402,1706358640915,-500.0,0.0003584,3]
[312851403,1706358640923,-500.0,0.0003584,3]
[312851404,1706358640932,-500.0,0.0003586,3]
[312851405,1706358640941,-500.0,0.0003586,3]
[312851406,1706358640950,-500.0,0.0003588,3]
[312851407,1706358640959,-500.0,0.0003588,3]
[312851408,1706358640968,-10538.57427993,0.000359,2]
[312851409,1706358640977,-500.0,0.000359,3]
[312851410,1706358640986,-500.0,0.000359,3]
[312851411,1706358640995,-500.0,0.0003592,3]
[312851412,1706358641003,-500.0,0.0003592,3]
[312851413,1706358641012,-151.53030455,0.00035928,2]
[312851414,1706358641021,-150.70062205,0.00035933,2]
[312851415,1706358641031,-500.0,0.0003594,3]
[312851416,1706358641040,-500.0,0.0003594,3]
[312851417,1706358641049,-500.0,0.0003596,3]
[312851418,1706358641057,-500.0,0.0003596,3]
[312851419,1706358641066,-500.0,0.0003598,3]
[312851420,1706358641075,-500.0,0.0003598,3]
[312851421,1706358641084,-151.0,0.00035999,2]
[312851422,1706358641093,-234.955596,0.00035999,2]
[312851423,1706358641103,-234.955596,0.00035999,2]
[312851424,1706358641112,-59124.4029326,0.00036,2]
[312851425,1706358641277,-10202.84952288,0.00036,2]
[312851426,1706358641289,-74424.45310983,0.00036,2]
[312851440,1706358641633,-698.33871639,0.00019942,3]
[312851441,1706358641645,-2337.63320652,0.00019942,3]
[312851457,1706358645000,-155.01860223,0.00019941,3]
[312851458,1706358645009,-155.06158408,0.00019941,2]
[312851459,1706358645019,-6026.27437842,0.00019942,3]
[312851460,1706358645063,-329.47296623,0.00019942,3]
[312851510,1706358649759,3168.359,0.00030986,10]
[312851512,1706359253534,24900.0,0.00017509,2]
[312851576,1706359832518,-523.34168566,0.000184,2]
[312851577,1706359832532,-521.0,0.00018401,2]
[312851579,1706359832546,-617.20703081,0.00018402,2]
[312851581,1706359832560,-171.07208762,0.00018402,2]
[312851582,1706359832573,-155.02015262,0.00018403,3]
[312851584,1706359832584,-453.1775686,0.00018403,2]
[312851585,1706359832594,-170.17695293,0.00018441,2]
[312851587,1706359832606,-81256.3314766,0.0001854,2]
[312851588,1706359832619,-2040.63936826,0.00018541,2]
[312851589,1706359832631,-595.56031941,0.00018542,2]
[312851591,1706359832644,-7966.81883748,0.00018542,2]
[312851592,1706359832655,-625.17876758,0.00018543,2]
[312851594,1706359832667,-629.61072205,0.00018543,2]
[312851595,1706359832678,-3748.53879648,0.00018543,2]
[312851597,1706359832689,-688.5172537,0.00018543,2]
[312851598,1706359832700,-166.80502533,0.00018543,2]
[312851600,1706359832724,-18917.23049455,0.00018543,2]
[312851602,1706359832745,-309.8605821,0.00018544,2]
[312851604,1706359832762,-178.98764938,0.00018544,2]
[312851605,1706359832779,-19715.74438324,0.00018545,2]
[312851607,1706359832794,-19924.70920393,0.00018546,2]
[312851609,1706359832809,-171.9191,0.00019178,2]
[312851610,1706359832823,-166.01617217,0.00019939,2]
[312851612,1706359832837,-526.92824298,0.0001994,2]
[312851613,1706359832849,-272.79145972,0.0001994,2]
[312851615,1706359832862,-155.02015262,0.0002,2]
[312851616,1706359832875,-244.16390159,0.0002,2]
[312851618,1706359832887,-151.60370444,0.0002,2]
[312851619,1706359832899,-500.0,0.00021917,2]
[312851621,1706359832911,-500.0,0.00021917,2]
[312851622,1706359832924,-500.0,0.00021917,2]
[312851624,1706359832935,-500.0,0.00021917,2]
[312851625,1706359832947,-500.0,0.00021917,2]
[312851627,1706359832959,-500.0,0.00021917,2]
[312851628,1706359832972,-619.87643609,0.00021917,2]
[312851630,1706359832983,-167.661166,0.00021918,2]
[312851631,1706359832995,-327.61566675,0.00022,2]
[312851633,1706359833007,-3971.98419525,0.00022,2]
[312851634,1706359833020,-426.38170713,0.00022,2]
[312851636,1706359833032,-167.661166,0.00022773,2]
[312851637,1706359833045,-1000.0,0.00022999,3]
[312851639,1706359833057,-167.661166,0.00023627,2]
[312851640,1706359833069,-2411.18267574,0.00023948,2]
[312851642,1706359833081,-4017.99473219,0.00024,2]
[312851643,1706359833092,-167.661166,0.00024482,2]
[312851645,1706359833104,-851.06760342,0.00025,2]
[312851646,1706359833118,-7389.4786433,0.00025,2]
[312851648,1706359833129,-10325.15,0.00027397,3]
[312851649,1706359833141,-8604.29,0.00027397,3]
[312851650,1706359833150,-7170.24,0.00027397,3]
[312851652,1706359833159,-1517.83727646,0.000275,2]
[312851658,1706359833172,-1675.72453516,0.000275,2]
[312851660,1706359833306,-166.857692,0.00027571,2]
[312851661,1706359833315,-500.0,0.00029,2]
[312851663,1706359833324,-356.76582487,0.0002935,2]
[312851781,1706359838532,-6665.82548223,0.0002935,2]
[312851782,1706359838541,-1896.46325325,0.0002935,2]
[312851783,1706359838550,-5000.0,0.0002935,5]
[312851784,1706359838559,-2490.81104712,0.00029373,3]
[312851785,1706359838568,-897.158147,0.00029998,2]
[312851786,1706359838577,-717.726514,0.00029998,2]
[312851787,1706359838586,-195.76432188,0.0003,2]
[312851788,1706359838595,-2000.0,0.000301,2]
[312851789,1706359838604,-2000.0,0.0003011,2]
[312851790,1706359838613,-2000.0,0.0003012,2]
[312851791,1706359838623,-2000.0,0.0003013,2]
[312851792,1706359838632,-158.81503,0.00030137,2]
[312851793,1706359838642,-181.723592,0.00030137,2]
[312851794,1706359838651,-2794.066118,0.0003014,2]
[312851795,1706359838661,-150.321,0.00030143,2]
[312851796,1706359838671,-454.90275515,0.00030986,4]
[312851797,1706359838681,-2455.69377072,0.00030986,2]
[312851798,1706359838690,-1027.50463707,0.00030986,2]
[312851799,1706359838699,-408.1017874,0.00030986,4]
[312851800,1706359838708,-181.723592,0.00031115,2]
[312851801,1706359838718,-245.548314,0.00032,5]
[312851802,1706359838728,-181.723592,0.00032094,2]
[312851803,1706359838737,-228.50754628,0.00033,2]
[312851804,1706359838747,-181.723592,0.00033072,2]
[312851805,1706359838756,-300.0,0.000334,17]
[312851806,1706359838765,-158.81503,0.0003379,2]
[312851807,1706359838775,-181.723592,0.00034051,2]
[312851808,1706359838784,-300.0,0.000349,17]
[312851809,1706359838793,-176.26792488,0.000349,2]
[312851810,1706359838802,-5975.2,0.0003499,3]
[312851811,1706359838813,-64779.66661041,0.00035,15]
[312851812,1706359838822,-592.61828384,0.00035,2]
[312851813,1706359838832,-155.12190431,0.00035,6]
[312851814,1706359838841,-54257.0,0.00035,2]
[312851815,1706359838851,-714.830675,0.00035,7]
[312851816,1706359838860,-2000.0,0.00035,11]
[312851817,1706359838869,-2000.0,0.0003501,11]
[312851818,1706359838878,-2000.0,0.0003502,11]
[312851819,1706359838887,-181.723592,0.00035029,2]
[312851820,1706359838897,-2000.0,0.0003503,11]
[312851821,1706359838906,-2000.0,0.0003504,11]
[312851822,1706359838916,-2000.0,0.0003505,11]
[312851823,1706359838925,-2000.0,0.0003506,12]
[312851824,1706359838934,-2000.0,0.0003507,12]
[312851825,1706359838944,-2000.0,0.0003508,12]
[312851826,1706359838953,-2000.0,0.0003509,12]
[312851827,1706359838962,-2000.0,0.000351,12]
[312851828,1706359838974,-2000.0,0.0003511,12]
[312851829,1706359838984,-2000.0,0.0003512,12]
[312851830,1706359838993,-2000.0,0.0003513,12]
[312851831,1706359839002,-2000.0,0.0003514,12]
[312851832,1706359839011,-2000.0,0.0003515,12]
[312851833,1706359839020,-2000.0,0.0003516,12]
[312851834,1706359839029,-3482.948512,0.0003517,12]
[312851835,1706359839038,-176.26792488,0.000354,2]
[312851836,1706359839048,-50000.0,0.00035478,7]
[312851837,1706359839057,-151.0,0.00035499,4]
[312851838,1706359839067,-3908.98107071,0.0003557,2]
[312851839,1706359839076,-156.75152574,0.0003557,2]
[312851840,1706359839087,-150.70062205,0.00035594,2]
[312851841,1706359839095,-1937.904787,0.00035616,120]
[312851842,1706359839105,-500.0,0.0003562,3]
[312851843,1706359839114,-500.0,0.0003562,3]
[312851844,1706359839122,-500.0,0.0003564,3]
[312851845,1706359839131,-500.0,0.0003564,3]
[312851846,1706359839141,-500.0,0.0003566,3]
[312851847,1706359839150,-500.0,0.0003566,3]
[312851848,1706359839158,-500.0,0.0003568,3]
[312851849,1706359839167,-500.0,0.0003568,3]
[312851850,1706359839176,-426.989415,0.00035684,2]
[312851851,1706359839186,-285.448336,0.00035684,2]
[312851852,1706359839195,-177.54501,0.00035684,2]
[312851853,1706359839204,-500.0,0.000357,3]
[312851854,1706359839213,-500.0,0.000357,3]
[312851855,1706359839222,-500.0,0.0003572,3]
[312851856,1706359839231,-500.0,0.0003572,3]
[312851857,1706359839240,-500.0,0.0003574,3]
[312851858,1706359839249,-500.0,0.0003574,3]
[312851859,1706359839258,-500.0,0.0003576,3]
[312851860,1706359839267,-500.0,0.0003576,3]
[312851861,1706359839276,-500.0,0.0003578,3]
[312851862,1706359839285,-500.0,0.0003578,3]
[312851863,1706359839294,-500.0,0.000358,3]
[312851864,1706359839303,-500.0,0.000358,3]
[312851865,1706359839312,-500.0,0.0003582,3]
[312851866,1706359839321,-500.0,0.0003582,3]
[312851867,1706359839330,-500.0,0.0003584,3]
[312851868,1706359839339,-500.0,0.0003584,3]
[312851869,1706359839348,-500.0,0.0003586,3]
[312851870,1706359839357,-500.0,0.0003586,3]
[312851871,1706359839366,-500.0,0.0003588,3]
[312851872,1706359839375,-500.0,0.0003588,3]
[312851873,1706359839386,-30512.77255469,0.000359,2]
[312851874,1706359839395,-176.26792488,0.000359,2]
[312851875,1706359839404,-500.0,0.000359,3]
[312851876,1706359839413,-500.0,0.000359,3]
[312851877,1706359839423,-500.0,0.0003592,3]
[312851878,1706359839432,-500.0,0.0003592,3]
[312851879,1706359839441,-151.01661183,0.00035928,2]
[312851880,1706359839450,-250.51843703,0.00035928,2]
[312851881,1706359839459,-500.0,0.0003594,3]
[312851882,1706359839468,-500.0,0.0003594,3]
[312851883,1706359839477,-500.0,0.0003596,3]
[312851884,1706359839486,-500.0,0.0003596,3]
[312851885,1706359839495,-500.0,0.0003598,3]
[312851886,1706359839504,-500.0,0.0003598,3]
[312851887,1706359839513,-262.4463546,0.00035998,4]
[312851888,1706359839522,-155.09992564,0.00035998,4]
[312851889,1706359839531,-4727.98807036,0.00035998,4]
[312851890,1706359839540,-298.67266748,0.00035999,4]
[312851891,1706359839551,-494.57008111,0.00035999,10]
[312851892,1706359839560,-500.0,0.00035999,10]
[312851893,1706359839570,-500.0,0.00035999,10]
[312851894,1706359839579,-500.0,0.00035999,10]
[312851895,1706359839588,-357.48353108,0.00035999,10]
[312851896,1706359839598,-151.0,0.00035999,4]
[312851897,1706359839607,-500.0,0.00035999,10]
[312851898,1706359839616,-500.0,0.00035999,10]
[312851899,1706359839625,-500.0,0.00035999,15]
[312851900,1706359839634,-176.60188357,0.00035999,15]
[312851901,1706359839643,-500.0,0.00035999,10]
[312851902,1706359839652,-500.0,0.00035999,10]
[312851903,1706359839661,-373.73938568,0.00035999,10]
[312851904,1706359839670,-311.78878247,0.00035999,10]
[312851905,1706359839679,-500.0,0.00035999,10]
[312851906,1706359839688,-321.69028241,0.00035999,10]
[312851907,1706359839697,-500.0,0.00035999,10]
[312851908,1706359839707,-500.0,0.00035999,10]
[312851909,1706359839716,-500.0,0.00035999,10]
[312851910,1706359839726,-500.0,0.00035999,10]
[312851911,1706359839735,-500.0,0.00035999,10]
[312851912,1706359839744,-500.0,0.00035999,10]
[312851913,1706359839754,-500.0,0.00035999,10]
[312851914,1706359839763,-500.0,0.00035999,10]
[312851915,1706359839772,-297.72143804,0.00035999,10]
[312851916,1706359839781,-500.0,0.00035999,10]
[312851917,1706359839791,-500.0,0.00035999,10]
[312851918,1706359839800,-500.0,0.00035999,10]
[312851919,1706359839809,-500.0,0.00035999,10]
[312851920,1706359839818,-500.0,0.00035999,10]
[312851921,1706359839827,-500.0,0.00035999,10]
[312851922,1706359839836,-532.71939461,0.00035999,10]
[312851923,1706359839845,-500.0,0.00035999,10]
[312851924,1706359839854,-500.0,0.00035999,10]
[312851925,1706359839863,-500.0,0.00035999,10]
[312851926,1706359839872,-500.0,0.00035999,10]
[312851927,1706359839882,-500.0,0.00035999,10]
[312851928,1706359839891,-500.0,0.00035999,10]
[312851929,1706359839901,-500.0,0.00035999,10]
[312851930,1706359839910,-500.0,0.00035999,10]
[312851931,1706359840000,-500.0,0.00035999,10]
[312851932,1706359840011,-500.0,0.00035999,10]
[312851933,1706359840020,-500.0,0.00035999,10]
[312851934,1706359840029,-500.0,0.00035999,10]
[312851935,1706359840038,-500.0,0.00035999,10]
[312851936,1706359840048,-500.0,0.00035999,10]
[312851937,1706359840057,-165451.71285374,0.00036,2]
[312851938,1706359840071,-10202.84952288,0.00036,2]
[312851969,1706359841698,-1025.49883288,0.00029349,2]
[312852097,1706360032353,2978.55808829,0.0001631,2]
[312852098,1706360105805,155.01860223,0.00020997,4]
[312852099,1706360300607,769.50815181,0.00016,5]
[312852100,1706360300636,1132.06055341,0.00016,5]
[312852104,1706360930405,165.29707595,0.00016,2]
[312852105,1706360932472,652.36942683,0.00016,2]
[312852106,1706360959198,930.4806264,0.00016,2]
[312852235,1706361031737,-155.02015262,0.00018666,3]
[312852237,1706361031746,-262.54949426,0.00018667,2]
[312852240,1706361031756,-978.75061234,0.00018668,2]
[312852242,1706361031765,-521.0,0.00018669,2]
[312852245,1706361031774,-523.34168566,0.00018669,2]
[312852248,1706361031783,-213.595546,0.0001867,2]
[312852251,1706361031792,-2105.3133158,0.00018671,2]
[312852268,1706361031892,-4445.81317414,0.00018673,2]
[312852284,1706361037693,-422.352785,0.00018672,2]
[312852286,1706361037702,-3286.92145986,0.00018673,2]
[312852299,1706361037818,-2372.89810611,0.00018673,2]
[312852301,1706361037829,-1766.78114445,0.00018673,2]
[312852303,1706361037841,-1415.15901164,0.00018673,2]
[312852305,1706361037851,-1583.7528565,0.00019,2]
[312852307,1706361037859,-2084.071023,0.0002,2]
[312852309,1706361037869,-155.01860223,0.0002,2]
[312852311,1706361037879,-1199.09633829,0.0002,2]
[312852313,1706361037888,-8251.22,0.00020236,3]
[312852315,1706361037897,-6876.02,0.00020236,3]
[312852317,1706361037906,-5730.01,0.00020236,3]
[312852319,1706361037915,-208.59620441,0.00020245,2]
[312852321,1706361037924,-72945.6992653,0.00020246,2]
[312852323,1706361037933,-265.67702683,0.00020247,2]
[312852325,1706361037942,-243.19997644,0.00020247,2]
[312852327,1706361037951,-1297.40269094,0.00020247,2]
[312852329,1706361037960,-565.52130685,0.00020247,2]
[312852331,1706361037970,-179.5831829,0.00020247,2]
[312852333,1706361037979,-470.95501386,0.00020247,2]
[312852335,1706361037988,-772.64107846,0.00020247,2]
[312852337,1706361037998,-11195.53554022,0.00020247,2]
[312852339,1706361038007,-2162.34501208,0.00020248,2]
[312852341,1706361038017,-176.26792488,0.00020899,2]
[312852343,1706361038027,-261.0874781,0.00020998,2]
[312852345,1706361038037,-1742.30413686,0.00020998,2]
[312852347,1706361038046,-295.12770733,0.00020999,2]
[312852349,1706361038055,-19531.26104472,0.00021,2]
[312852351,1706361038064,-9869.12528061,0.00021,2]
[312852353,1706361038075,-194.51343232,0.00021,2]
[312852354,1706361038084,-1827.7377922,0.00021,2]
[312852355,1706361038093,-151.53333552,0.00021058,2]
[312852356,1706361038102,-327.61566675,0.00022,2]
[312852357,1706361038111,-164.09330822,0.00022,2]
[312852358,1706361038120,-2033.37480073,0.00022,2]
[312852359,1706361038129,-199.00160264,0.000227,2]
[312852360,1706361038137,-1416.67721386,0.00023,2]
[312852361,1706361038146,-9947.92180076,0.00023,2]
[312852362,1706361038155,-2009.31889645,0.00023948,2]
[312852363,1706361038163,-4017.99473219,0.00024,2]
[312852364,1706361038172,-851.06760342,0.00025,2]
[312852365,1706361038181,-851.06760342,0.00025,2]
[312852366,1706361038190,-4727.98807036,0.00025,2]
[312852368,1706361038199,-156.19598509,0.00025,2]
[312852370,1706361038209,-2908.5811352,0.00025297,2]
[312852371,1706361038218,-176.26792488,0.00025566,2]
[312852372,1706361038227,-241.485214,0.00026,2]
[312852373,1706361038236,-290.6944281,0.00027,2]
[312852374,1706361038245,-621.9446124,0.0002728,2]
[312852375,1706361038254,-1901.44944296,0.000275,2]
[312852376,1706361038264,-3193.56181162,0.000275,2]
[312852377,1706361038273,-556.2457431,0.00028,2]
[312852378,1706361038282,-620.09723062,0.00028644,2]
[312852379,1706361038291,-500.0,0.00029,2]
[312852380,1706361038301,-1933.42796518,0.00029,2]
[312852381,1706361038310,-7196.06854955,0.00029,4]
[312852382,1706361038319,-1000.0,0.00029,2]
[312852383,1706361038329,-764.75702273,0.00029349,2]
[312852384,1706361038338,-58138.63896851,0.00029459,4]
[312852385,1706361038347,-4206.95101979,0.00029459,3]
[312852386,1706361038356,-81637.37652524,0.00029459,4]
[312852387,1706361038365,-1145.00775892,0.00029459,2]
[312852388,1706361038377,-897.158142,0.00029998,2]
[312852389,1706361038386,-1614.884661,0.00029998,2]
[312852390,1706361038395,-454.90275515,0.0003,4]
[312852391,1706361038404,-309.90625369,0.0003,4]
[312852392,1706361038413,-195.57103754,0.0003,2]
[312852393,1706361038422,-254.87264804,0.0003,2]
[312852394,1706361038432,-620.00486153,0.00030076,2]
[312852395,1706361038443,-153.0,0.00030137,2]
[312852396,1706361038457,-312.5134984,0.00030137,2]
[312852397,1706361038467,-153.0,0.00030137,2]
[312852398,1706361038476,-153.0,0.00030137,2]
[312852399,1706361038485,-153.0,0.00030137,2]
[312852400,1706361038494,-199.4415769,0.00030137,2]
[312852401,1706361038505,-153.0,0.00030137,2]
[312852402,1706361038514,-153.0,0.00030137,2]
[312852403,1706361038523,-153.0,0.00030137,2]
[312852404,1706361038532,-199.4415769,0.00030137,2]
[312852405,1706361038541,-153.0,0.00030137,2]
[312852406,1706361038550,-153.0,0.00030137,2]
[312852407,1706361038559,-153.0,0.00030137,2]
[312852408,1706361038568,-153.0,0.00030137,2]
[312852409,1706361038577,-153.0,0.00030137,2]
[312852410,1706361038586,-199.4415769,0.00030137,2]
[312852411,1706361038595,-317.486678,0.00030137,2]
[312852412,1706361038604,-153.0,0.00030137,2]
[312852413,1706361038614,-153.0,0.00030137,2]
[312852414,1706361038623,-153.0,0.00030137,2]
[312852415,1706361038633,-212.0814075,0.00030137,2]